fUST/lending_fUST_20260221
["ID","MTS","AMOUNT","RATE_DAILY","PERIOD"]
[406263641,1771667446466,-4308.15901534,0.00023776,2]
[406263642,1771667446475,-2691.65223233,0.00023776,2]
[406263717,1771668139557,-289.33339014,0.00019185,5]
[406263723,1771668632221,-1744.52839776,0.00013009,2]
[406263851,1771668640620,-3255.47160224,0.00013009,2]
[406263853,1771668640631,-606.0,0.0001314,2]
[406263855,1771668640640,-234.13405472,0.00013206,2]
[406263857,1771668640650,-500.0,0.00013273,2]
[406263859,1771668640659,-1000.0,0.00013821,2]
[406263861,1771668640668,-1459.4846248,0.00019534,2]
[406263863,1771668640678,-190.218756,0.00019773,2]
[406263865,1771668640687,-3990.6968975,0.00019773,2]
[406263867,1771668640695,-2591.671268,0.00019773,2]
[406263869,1771668640704,-241.3612595,0.00019773,2]
[406263871,1771668640714,-5024.49647631,0.00021,4]
[406263873,1771668640723,-522.0217926,0.00021804,2]
[406263875,1771668640732,-1616.78160848,0.0002198,2]
[406264343,1771668645228,-761.26596546,0.0002198,2]
[406264351,1771668645438,-213.62369406,0.0002198,2]
[406264353,1771668645447,-558.36630815,0.00022002,2]
[406264407,1771668646278,-3432.33058935,0.00022002,2]
[406264409,1771668646288,-2825.90336373,0.00022153,2]
[406264411,1771668646297,-1000.0,0.00022337,30]
[406264413,1771668646306,-241.3612595,0.00022562,2]
[406264415,1771668646315,-500.0,0.0002273,2]
[406264417,1771668646325,-500.0,0.0002273,2]
[406264419,1771668646334,-323.85000663,0.0002273,2]
[406264421,1771668646349,-176.14999337,0.0002273,2]
[406264423,1771668646359,-500.0,0.0002273,2]
[406264425,1771668646369,-344.53796988,0.0002273,2]
[406264427,1771668646378,-500.0,0.0002273,2]
[406264429,1771668646388,-500.0,0.0002273,2]
[406264431,1771668646398,-454.32428964,0.0002273,2]
[406264433,1771668646408,-157.21764397,0.0002273,2]
[406264435,1771668646417,-522.27231358,0.00022732,2]
[406264436,1771668646426,-2089.08925431,0.00022732,2]
[406264437,1771668646436,-559.4666458,0.00022732,2]
[406264438,1771668646445,-151.0,0.00023507,2]
[406264439,1771668646455,-151.0,0.00023507,2]
[406264440,1771668646464,-151.0,0.00023508,2]
[406264441,1771668646475,-1374.30340814,0.0002352,4]
[406264442,1771668738977,150.0,0.00014,30]
[406264443,1771668767649,152.5,0.0001,10]
[406264447,1771669036912,802.41,6.9e-05,2]
[406264448,1771669053508,341.88311268,0.0001,10]
[406264449,1771669053534,259.92688732,0.0001,10]
[406264450,1771669090565,1805.4,0.00014,30]
[406264491,1771669832381,-224.0993891,0.00018471,2]
[406264493,1771669832391,-1435.74899981,0.0001949,2]
[406264495,1771669832401,-405.06181981,0.00020116,2]
[406264497,1771669832411,-682.38491172,0.00020116,2]
[406264499,1771669832420,-2317.41385226,0.0002031,2]
[406264541,1771669845255,-455.08862534,0.00020107,2]
[406264542,1771669845267,-3440.76544408,0.00020107,2]
[406264543,1771669845276,-2235.6287166,0.00020973,2]
[406264544,1771669845285,-1226.21551366,0.00021392,2]
[406264545,1771669845295,-190.2187563,0.00021436,2]
[406264546,1771669845304,-6270.1592974,0.00021436,2]
[406264547,1771669845314,-482.722519,0.00021436,2]
[406264548,1771669845323,-4072.0185256,0.00021436,2]
[406264549,1771669845333,-2808.19635231,0.00021936,2]
[406264557,1771669846491,-889.93867088,0.00021936,2]
[406264558,1771669846503,-997.61534817,0.00021936,2]
[406264559,1771669846512,-2302.43102744,0.00022497,2]
[406264560,1771669846523,-208.70215394,0.0002263,2]
[406264561,1771669846532,-455.91861535,0.00023128,2]
[406264562,1771669846541,-1126.06647786,0.00023154,2]
[406264563,1771669846551,-398.46076477,0.00023209,2]
[406264564,1771669846560,-717.22937659,0.00023209,2]
[406264565,1771669846571,-1275.07444727,0.00023209,2]
[406264566,1771669846580,-415.76392607,0.00023254,2]
[406264570,1771670408962,2750.43,7e-05,2]
[406264600,1771671031505,-150.09,0.00019093,7]
[406264601,1771671031514,-150.09,0.00019175,7]
[406264603,1771671031523,-1121.64657796,0.00019227,3]
[406264605,1771671031532,-150.11,0.00019341,7]
[406264607,1771671031541,-150.12,0.00019518,7]
[406264609,1771671031550,-670.10824922,0.00021715,2]
[406264610,1771671031560,-1406.89700667,0.0002238,2]
[406264612,1771671031569,-1565.39789117,0.0002324,2]
[406264652,1771671037661,-833.01404913,0.0002324,2]
[406264654,1771671037671,-151.0,0.0002324,2]
[406264657,1771671037682,-151.0,0.0002324,2]
[406264659,1771671037691,-151.0,0.0002324,2]
[406264661,1771671037700,-151.0,0.0002324,2]
[406264663,1771671037709,-151.0,0.0002324,2]
[406264665,1771671037720,-154.68461599,0.0002324,2]
[406264667,1771671037730,-1957.856,0.0002324,2]
[406264669,1771671037740,-238.50548899,0.00023295,2]
[406264673,1771671037769,-1791.79118301,0.00023295,2]
[406264675,1771671037778,-2105.41764886,0.0002335,2]
[406264677,1771671037787,-2663.79401344,0.00023396,2]
[406264679,1771671037796,-619.21668576,0.00023405,2]
[406265339,1771671045687,-1564.10141611,0.00023405,2]
[406265341,1771671045697,-2264.10087164,0.0002346,2]
[406265343,1771671045706,-2347.87260389,0.00023515,2]
[406265345,1771671045716,-2434.74389024,0.0002357,2]
[406265347,1771671045726,-2109.06548809,0.00023625,2]
[406265349,1771671045735,-1282.5232717,0.00023788,2]
[406265611,1771672237872,-1459.48828401,0.00022171,2]
[406265612,1771672237883,-251.74621379,0.00022171,2]
[406265613,1771672237893,-1111.3240104,0.00022171,2]
[406265614,1771672237903,-200.0,0.00022524,7]
[406265615,1771672237912,-1575.0,0.00023164,2]
[406265616,1771672237921,-318.16993342,0.00023295,2]
[406265617,1771672237932,-572.70588015,0.00023295,2]
[406265618,1771672237941,-1018.14378693,0.00023295,2]
[406265619,1771672237951,-168.0,0.00023795,2]
[406265620,1771672237960,-168.0,0.00023831,2]
[406265621,1771672237974,-168.0,0.00023878,2]
[406265622,1771672237983,-2398.4119403,0.00023892,2]
[406265623,1771672237992,-176.460456,0.00023906,2]
[406265624,1771672238002,-1137.13659186,0.0002391,4]
[406265625,1771672238012,-168.0,0.00023918,2]
[406265626,1771672238022,-1644.44569642,0.00024,7]
[406266196,1771672245779,-436.41210775,0.00024,7]
[406266197,1771672245788,-168.0,0.00024013,2]
[406266198,1771672245797,-856.44591782,0.0002412,3]
[406266199,1771672245806,-166.0,0.00024165,3]
[406266200,1771672245815,-350.0,0.00024165,3]
[406266201,1771672245824,-630.0,0.00024165,3]
[406266202,1771672245832,-36.32197443,0.00024165,3]
[406266204,1771672245843,-313.67802557,0.00024165,3]
[406266205,1771672245852,-166.0,0.00024165,3]
[406266207,1771672245861,-357.82837348,0.00024165,3]
[406266209,1771672245870,-630.0,0.00024165,3]
[406266221,1771672245973,-630.0,0.00024165,3]
[406266224,1771672245982,-345.67857828,0.00024165,3]
[406266226,1771672245991,-511.0,0.00024169,10]
[406266228,1771672246001,-168.0,0.00024253,2]
[406266230,1771672246011,-168.0,0.00024272,2]
[406266232,1771672246020,-454.78,0.00024285,2]
[406266234,1771672246030,-168.0,0.0002432,2]
[406266236,1771672246039,-7196.84737577,0.00024375,10]
[406266238,1771672246052,-1797.29262423,0.00024375,10]
[406266240,1771672246060,-318.67186025,0.00024382,2]
[406266242,1771672246070,-500.0,0.00024382,2]
[406266244,1771672246079,-500.0,0.00024382,2]
[406266246,1771672246088,-500.0,0.00024382,2]
[406266248,1771672246096,-371.92108943,0.00024382,2]
[406266250,1771672246105,-500.0,0.00024382,2]
[406266252,1771672246114,-500.0,0.00024382,2]
[406266254,1771672246123,-500.0,0.00024382,2]
[406266255,1771672246133,-500.0,0.00024382,2]
[406266258,1771672246144,-500.0,0.00024382,2]
[406266259,1771672246153,-500.0,0.00024382,2]
[406266261,1771672246162,-500.0,0.00024382,2]
[406266263,1771672246171,-500.0,0.00024382,2]
[406266266,1771672246180,-500.0,0.00024382,2]
[406266267,1771672246189,-500.0,0.00024382,2]
[406266269,1771672246198,-184.13529378,0.00024382,2]
[406266271,1771672246207,-500.0,0.00024382,2]
[406266273,1771672246216,-500.0,0.00024382,2]
[406266275,1771672246225,-500.0,0.00024382,2]
[406266278,1771672246234,-500.0,0.00024382,2]
[406266280,1771672246243,-500.0,0.00024382,2]
[406266281,1771672246252,-500.0,0.00024382,2]
[406266283,1771672246261,-500.0,0.00024382,2]
[406266285,1771672246270,-500.0,0.00024382,2]
[406266287,1771672246279,-500.0,0.00024382,2]
[406266289,1771672246288,-369.5084418,0.00024382,2]
[406266291,1771672246297,-500.0,0.00024382,2]
[406266294,1771672246308,-500.0,0.00024382,2]
[406266296,1771672246322,-500.0,0.00024382,2]
[406266298,1771672246331,-369.28612169,0.00024382,2]
[406266931,1771673431849,-626.196,0.00023451,30]
[406266932,1771673431859,-210.0752639,0.00023451,2]
[406266933,1771673431868,-155.975,0.00023451,2]
[406266934,1771673431878,-513.321453,0.00023551,2]
[406266935,1771673431887,-200.0,0.00023564,8]
[406266936,1771673431896,-80.74860538,0.00023639,2]
[406266946,1771673438008,-1362.06001547,0.00023639,2]
[406266947,1771673438018,-168.0,0.00023821,2]
[406266948,1771673438027,-168.0,0.00023926,2]
[406266949,1771673438037,-1000.0,0.00024157,5]
[406266950,1771673438147,-1166.53623114,0.00024283,2]
[406266951,1771673438157,-122.45171566,0.00024331,2]
[406267424,1771673444615,-800.60126174,0.00024331,2]
[406267426,1771673444625,-538.0,0.00024352,2]
[406267428,1771673444634,-1957.856,0.00024353,2]
[406267430,1771673444643,-151.0,0.00024353,2]
[406267432,1771673444652,-151.0,0.00024353,2]
[406267434,1771673444661,-151.0,0.00024353,2]
[406267436,1771673444669,-151.0,0.00024353,2]
[406267438,1771673444678,-151.0,0.00024353,2]
[406267440,1771673444687,-154.68461599,0.00024353,2]
[406267442,1771673444696,-1962.28459376,0.00024353,2]
[406267943,1771673596072,1609.02,0.00014,30]
[406267946,1771673634376,740.07311268,0.0001,10]
[406267947,1771673634399,64.43688732,0.0001,10]
[406267994,1771674632064,-214.64674638,0.00021918,2]
[406267996,1771674632074,-168.0,0.00022541,2]
[406267998,1771674632084,-168.0,0.00022579,2]
[406268001,1771674632093,-24.03769259,0.00022721,2]
[406268059,1771674638127,-143.96230741,0.00022721,2]
[406268060,1771674638137,-168.0,0.00022737,2]
[406268061,1771674638146,-168.0,0.00022867,2]
[406268062,1771674638155,-168.0,0.00022913,2]
[406268063,1771674638165,-168.0,0.00023098,2]
[406268064,1771674638174,-238.505489,0.00023117,2]
[406268065,1771674638184,-2398.4119403,0.0002313,2]
[406268066,1771674638193,-151.0,0.0002313,2]
[406268067,1771674638203,-151.0,0.0002313,2]
[406268068,1771674638212,-500.0,0.0002313,2]
[406268069,1771674638222,-151.0,0.0002313,2]
[406268070,1771674638231,-463.77576113,0.0002313,2]
[406268071,1771674638242,-36.22423887,0.0002313,2]
[406268072,1771674638252,-151.0,0.0002313,2]
[406268073,1771674638261,-500.0,0.0002313,2]
[406268074,1771674638271,-250.0,0.0002313,2]
[406268075,1771674638281,-151.0,0.0002313,2]
[406268076,1771674638291,-500.0,0.0002313,2]
[406268077,1771674638300,-250.0,0.0002313,2]
[406268078,1771674638310,-151.0,0.0002313,2]
[406268079,1771674638319,-500.0,0.0002313,2]
[406268080,1771674638329,-500.0,0.0002313,2]
[406268081,1771674638338,-250.0,0.0002313,2]
[406268082,1771674638348,-151.0,0.0002313,2]
[406268083,1771674638357,-500.0,0.0002313,2]
[406268084,1771674638367,-500.0,0.0002313,2]
[406268085,1771674638376,-250.0,0.0002313,2]
[406268086,1771674638386,-500.0,0.0002313,2]
[406268087,1771674638395,-214.58275654,0.0002313,2]
[406268088,1771674638406,-500.0,0.0002313,2]
[406268089,1771674638416,-250.0,0.0002313,2]
[406268090,1771674638426,-500.0,0.0002313,2]
[406268091,1771674638436,-500.0,0.0002313,2]
[406268092,1771674638445,-250.0,0.0002313,2]
[406268093,1771674638454,-500.0,0.0002313,2]
[406268094,1771674638464,-181.08010149,0.0002313,2]
[406268095,1771674638473,-500.0,0.0002313,2]
[406268096,1771674638482,-500.0,0.0002313,2]
[406268097,1771674638492,-250.0,0.0002313,2]
[406268098,1771674638502,-500.0,0.0002313,2]
[406268099,1771674638511,-187.78006525,0.0002313,2]
[406268100,1771674638521,-250.0,0.0002313,2]
[406268101,1771674638531,-250.0,0.0002313,2]
[406268102,1771674638540,-500.0,0.0002313,2]
[406268103,1771674638550,-250.0,0.0002313,2]
[406268104,1771674638560,-194.72792766,0.0002313,2]
[406268105,1771674638570,-500.0,0.0002313,2]
[406268106,1771674638579,-349.51258953,0.0002313,2]
[406268107,1771674638589,-500.0,0.0002313,2]
[406268108,1771674638598,-201.93286099,0.0002313,2]
[406268109,1771674638608,-500.0,0.0002313,2]
[406268110,1771674638618,-250.0,0.0002313,2]
[406268111,1771674638628,-250.0,0.0002313,2]
[406268112,1771674638638,-250.0,0.0002313,2]
[406268113,1771674638648,-250.0,0.0002313,2]
[406268114,1771674638658,-250.0,0.0002313,2]
[406268115,1771674638668,-250.0,0.0002313,2]
[406268116,1771674638677,-250.0,0.0002313,2]
[406268117,1771674638687,-250.0,0.0002313,2]
[406268118,1771674638696,-500.0,0.0002313,2]
[406268119,1771674638705,-250.0,0.0002313,2]
[406268120,1771674638715,-209.40437684,0.0002313,2]
[406268121,1771674638724,-250.0,0.0002313,2]
[406268122,1771674638734,-500.0,0.0002313,2]
[406268123,1771674638744,-250.0,0.0002313,2]
[406268124,1771674638753,-165.62441091,0.0002313,2]
[406268125,1771674638776,-51.52792787,0.0002313,2]
[406268126,1771674638785,-250.0,0.0002313,2]
[406268127,1771674638795,-500.0,0.0002313,2]
[406268128,1771674638804,-225.18697532,0.0002313,2]
[406268129,1771674638813,-250.0,0.0002313,2]
[406268130,1771674638823,-250.0,0.0002313,2]
[406268131,1771674638832,-500.0,0.0002313,2]
[406268132,1771674638841,-233.51889341,0.0002313,2]
[406268133,1771674638850,-250.0,0.0002313,2]
[406268134,1771674638859,-500.0,0.0002313,2]
[406268135,1771674638868,-250.0,0.0002313,2]
[406268136,1771674638878,-242.15909246,0.0002313,2]
[406268137,1771674638886,-250.0,0.0002313,2]
[406268138,1771674638896,-204.00419339,0.0002313,2]
[406268491,1771674643530,-45.99580661,0.0002313,2]
[406268493,1771674643540,-500.0,0.0002313,2]
[406268495,1771674643550,-251.11897888,0.0002313,2]
[406268497,1771674643559,-250.0,0.0002313,2]
[406268499,1771674643568,-500.0,0.0002313,2]
[406268501,1771674643582,-260.4103811,0.0002313,2]
[406268503,1771674643592,-250.0,0.0002313,2]
[406268505,1771674643601,-500.0,0.0002313,2]
[406268507,1771674643611,-270.0455652,0.0002313,2]
[406268509,1771674643622,-280.03725112,0.0002313,2]
[406268511,1771674643631,-500.0,0.0002313,2]
[406268513,1771674643641,-290.39862941,0.0002313,2]
[406268515,1771674643650,-500.0,0.0002313,2]
[406268517,1771674643659,-301.1433787,0.0002313,2]
[406268519,1771674643669,-500.0,0.0002313,2]
[406268521,1771674643678,-500.0,0.0002313,2]
[406268523,1771674643687,-500.0,0.0002313,2]
[406268525,1771674643697,-500.0,0.0002313,2]
[406268527,1771674643706,-500.0,0.0002313,2]
[406268529,1771674643716,-250.0,0.0002313,2]
[406268531,1771674643725,-250.0,0.0002313,2]
[406268534,1771674643735,-250.0,0.0002313,2]
[406268536,1771674643744,-250.0,0.0002313,2]
[406268538,1771674643753,-250.0,0.0002313,2]
[406268540,1771674643762,-113.86736658,0.0002313,2]
[406268772,1771674646099,-136.13263342,0.0002313,2]
[406268774,1771674646108,-250.0,0.0002313,2]
[406268776,1771674646117,-322.92089249,0.0002313,2]
[406269243,1771674773376,935.56311268,0.0001,7]
[406269343,1771675243550,-300.0,9.999e-05,2]
[406269344,1771675243570,-300.0,0.0001,7]
[406269345,1771675243581,-3558.66844327,0.0001,7]
[406269351,1771675287155,-300.0,0.0001,7]
[406269352,1771675296406,-300.0,0.0001,7]
[406269359,1771675458091,1000.0,0.00014,30]
[406269361,1771675486550,700.0,0.00014,30]
[406269439,1771675832246,-6341.04758741,0.0001,7]
[406269440,1771675832256,-368.00965663,0.00011596,2]
[406269441,1771675832265,-232.5475755,0.00011713,2]
[406269442,1771675832275,-300.0,0.00013698,2]
[406269443,1771675832284,-616.95648365,0.00013699,2]
[406269444,1771675832293,-500.51174129,0.00013699,2]
[406269445,1771675832302,-500.0,0.00013699,2]
[406269446,1771675832311,-411.02223482,0.00013699,2]
[406269447,1771675832321,-501.55795685,0.00013699,2]
[406269448,1771675832332,-1361.08643618,0.00014175,2]
[406269449,1771675832342,-1465.07898963,0.00014175,2]
[406269450,1771675832356,-218.97990612,0.00014175,2]
[406269451,1771675832365,-375.48788215,0.00014247,2]
[406269452,1771675832374,-253.20721373,0.00015629,2]
[406269453,1771675832385,-293.745,0.00015629,2]
[406269484,1771675838403,-1286.03113232,0.00015629,2]
[406269486,1771675838416,-739.18952645,0.00015629,2]
[406269499,1771675838425,-2624.82880437,0.00017083,2]
[406269502,1771675838542,-1024.12436354,0.00018537,2]
[406269709,1771675840671,-1758.67223686,0.00018537,2]
[406269711,1771675840681,-151.0,0.00018537,2]
[406269713,1771675840691,-2993.42032843,0.00019991,2]
[406269715,1771675840704,-3401.130597,0.00021,2]
[406269717,1771675840713,-293.1032819,0.00021444,2]
[406269719,1771675840723,-500.0,0.00021444,2]
[406269721,1771675840733,-500.0,0.00021444,2]
[406269723,1771675840742,-500.0,0.00021444,2]
[406269725,1771675840751,-500.0,0.00021444,2]
[406269727,1771675840760,-500.0,0.00021444,2]
[406269729,1771675840771,-500.0,0.00021444,2]
[406269731,1771675840780,-500.0,0.00021444,2]
[406269733,1771675840789,-500.0,0.00021444,2]
[406269735,1771675840798,-500.0,0.00021444,2]
[406269737,1771675840807,-500.0,0.00021444,2]
[406269739,1771675840816,-500.0,0.00021444,2]
[406269741,1771675840825,-449.66303903,0.00021444,2]
[406269743,1771675840835,-500.0,0.00021444,2]
[406269745,1771675840844,-500.0,0.00021444,2]
[406269747,1771675840853,-500.0,0.00021444,2]
[406269749,1771675840862,-418.77640298,0.00021444,2]
[406269752,1771675840872,-500.0,0.00021444,2]
[406269754,1771675840881,-500.0,0.00021444,2]
[406269755,1771675840890,-500.0,0.00021444,2]
[406269757,1771675840899,-500.0,0.00021444,2]
[406269759,1771675840908,-500.0,0.00021444,2]
[406269761,1771675840917,-500.0,0.00021444,2]
[406269764,1771675840926,-500.0,0.00021444,2]
[406269766,1771675840935,-500.0,0.00021444,2]
[406269768,1771675840944,-500.0,0.00021444,2]
[406269770,1771675840953,-500.0,0.00021444,2]
[406269772,1771675840962,-500.0,0.00021444,2]
[406269774,1771675840971,-500.0,0.00021444,2]
[406269775,1771675840980,-500.0,0.00021444,2]
[406269778,1771675840990,-500.0,0.00021444,2]
[406269780,1771675840999,-500.0,0.00021444,2]
[406269782,1771675841008,-500.0,0.00021444,2]
[406269784,1771675841017,-500.0,0.00021444,2]
[406269786,1771675841026,-500.0,0.00021444,2]
[406269788,1771675841035,-500.0,0.00021444,2]
[406269790,1771675841044,-500.0,0.00021444,2]
[406269792,1771675841053,-500.0,0.00021444,2]
[406269794,1771675841062,-500.0,0.00021444,2]
[406269796,1771675841071,-500.0,0.00021444,2]
[406269798,1771675841080,-500.0,0.00021444,2]
[406269800,1771675841089,-500.0,0.00021444,2]
[406269802,1771675841098,-500.0,0.00021444,2]
[406269804,1771675841107,-500.0,0.00021444,2]
[406269806,1771675841115,-500.0,0.00021444,2]
[406269808,1771675841125,-500.0,0.00021444,2]
[406269810,1771675841134,-500.0,0.00021444,2]
[406269812,1771675841143,-500.0,0.00021444,2]
[406269814,1771675841152,-500.0,0.00021444,2]
[406269816,1771675841161,-443.4739304,0.00021444,2]
[406270346,1771675846307,-56.5260696,0.00021444,2]
[406270348,1771675846316,-500.0,0.00021444,2]
[406270350,1771675846325,-500.0,0.00021444,2]
[406270352,1771675846334,-500.0,0.00021444,2]
[406270354,1771675846343,-500.0,0.00021444,2]
[406270355,1771675846352,-500.0,0.00021444,2]
[406270357,1771675846361,-500.0,0.00021444,2]
[406270359,1771675846370,-500.0,0.00021444,2]
[406270361,1771675846379,-500.0,0.00021444,2]
[406270363,1771675846388,-500.0,0.00021444,2]
[406270365,1771675846397,-500.0,0.00021444,2]
[406270367,1771675846406,-500.0,0.00021444,2]
[406270368,1771675846415,-500.0,0.00021444,2]
[406270370,1771675846424,-228.90255044,0.00021444,2]
[406270372,1771675846435,-271.09744956,0.00021444,2]
[406270374,1771675846445,-500.0,0.00021444,2]
[406270376,1771675846454,-500.0,0.00021444,2]
[406270378,1771675846463,-500.0,0.00021444,2]
[406270380,1771675846471,-500.0,0.00021444,2]
[406270381,1771675846480,-389.50433128,0.00021444,2]
[406270383,1771675846490,-500.0,0.00021444,2]
[406270385,1771675846499,-500.0,0.00021444,2]
[406270387,1771675846508,-500.0,0.00021444,2]
[406270389,1771675846517,-500.0,0.00021444,2]
[406270392,1771675846526,-500.0,0.00021444,2]
[406270393,1771675846535,-500.0,0.00021444,2]
[406270396,1771675846544,-500.0,0.00021444,2]
[406270399,1771675846553,-500.0,0.00021444,2]
[406270400,1771675846563,-500.0,0.00021444,2]
[406270403,1771675846573,-500.0,0.00021444,2]
[406270406,1771675846582,-500.0,0.00021444,2]
[406270408,1771675846591,-500.0,0.00021444,2]
[406270411,1771675846600,-500.0,0.00021444,2]
[406270413,1771675846609,-500.0,0.00021444,2]
[406270415,1771675846619,-500.0,0.00021444,2]
[406270418,1771675846628,-500.0,0.00021444,2]
[406270421,1771675846637,-500.0,0.00021444,2]
[406270424,1771675846646,-500.0,0.00021444,2]
[406270425,1771675846656,-500.0,0.00021444,2]
[406270428,1771675846665,-500.0,0.00021444,2]
[406270431,1771675846674,-500.0,0.00021444,2]
[406270434,1771675846684,-500.0,0.00021444,2]
[406270437,1771675846695,-500.0,0.00021444,2]
[406270439,1771675846707,-500.0,0.00021444,2]
[406270442,1771675846717,-500.0,0.00021444,2]
[406270445,1771675846726,-500.0,0.00021444,2]
[406270448,1771675846735,-500.0,0.00021444,2]
[406270451,1771675846747,-500.0,0.00021444,2]
[406270452,1771675846756,-500.0,0.00021444,2]
[406270455,1771675846765,-500.0,0.00021444,2]
[406270458,1771675846774,-500.0,0.00021444,2]
[406270460,1771675846784,-500.0,0.00021444,2]
[406270463,1771675846793,-342.47269397,0.00021444,2]
[406270466,1771675846801,-500.0,0.00021444,2]
[406270469,1771675846810,-500.0,0.00021444,2]
[406270470,1771675846819,-500.0,0.00021444,2]
[406270473,1771675846829,-500.0,0.00021444,2]
[406270476,1771675846838,-500.0,0.00021444,2]
[406270479,1771675846847,-500.0,0.00021444,2]
[406270481,1771675846856,-500.0,0.00021444,2]
[406270484,1771675846865,-500.0,0.00021444,2]
[406270486,1771675846874,-500.0,0.00021444,2]
[406270488,1771675846883,-500.0,0.00021444,2]
[406270490,1771675846892,-500.0,0.00021444,2]
[406270492,1771675846902,-500.0,0.00021444,2]
[406270495,1771675846911,-500.0,0.00021444,2]
[406270496,1771675846920,-310.18577822,0.00021444,2]
[406270499,1771675846929,-500.0,0.00021444,2]
[406270501,1771675846938,-500.0,0.00021444,2]
[406270503,1771675846947,-500.0,0.00021444,2]
[406270505,1771675846956,-500.0,0.00021444,2]
[406270507,1771675846966,-500.0,0.00021444,2]
[406270509,1771675846975,-500.0,0.00021444,2]
[406270511,1771675846984,-500.0,0.00021444,2]
[406270512,1771675846993,-3204.04405646,0.00021446,2]
[406270514,1771675847003,-151.0,0.00021918,2]
[406270516,1771675847012,-286.11064728,0.00022005,2]
[406270518,1771675847021,-430.21542026,0.00022005,2]
[406270520,1771675847033,-1000.0,0.00022565,5]
[406270522,1771675847042,-168.0,0.00022652,2]
[406270524,1771675847051,-168.0,0.00022656,2]
[406270526,1771675847060,-168.0,0.00022664,2]
[406270528,1771675847069,-1575.0,0.00022793,2]
[406270530,1771675847078,-168.0,0.00022822,2]
[406270532,1771675847087,-5204.94,0.0002289,10]
[406270534,1771675847096,-3414.66778449,0.000229,2]
[406270536,1771675847105,-200.0,0.00023,2]
[406270537,1771675847114,-600.0,0.00023001,10]
[406270539,1771675847123,-6245.93,0.00023036,10]
[406270541,1771675847132,-4337.45,0.00023046,10]
[406270543,1771675847141,-250.0,0.00023056,2]
[406270545,1771675847149,-250.0,0.00023056,2]
[406270547,1771675847159,-250.0,0.00023056,2]
[406270549,1771675847168,-250.0,0.00023056,2]
[406270551,1771675847177,-250.0,0.00023056,2]
[406270553,1771675847187,-250.0,0.00023056,2]
[406270555,1771675847196,-250.0,0.00023056,2]
[406270556,1771675847205,-500.0,0.00023056,2]
[406270558,1771675847215,-250.0,0.00023056,2]
[406270569,1771675847308,-181.08010149,0.00023056,2]
[406270571,1771675847317,-250.0,0.00023056,2]
[406270573,1771675847327,-500.0,0.00023056,2]
[406270574,1771675847336,-250.0,0.00023056,2]
[406270576,1771675847345,-187.78006525,0.00023056,2]
[406270578,1771675847355,-250.0,0.00023056,2]
[406270580,1771675847364,-500.0,0.00023056,2]
[406270582,1771675847374,-250.0,0.00023056,2]
[406270584,1771675847383,-194.72792766,0.00023056,2]
[406270586,1771675847392,-250.0,0.00023056,2]
[406270588,1771675847401,-500.0,0.00023056,2]
[406270590,1771675847410,-250.0,0.00023056,2]
[406270591,1771675847419,-201.93286099,0.00023056,2]
[406270593,1771675847428,-250.0,0.00023056,2]
[406270595,1771675847438,-500.0,0.00023056,2]
[406270597,1771675847447,-250.0,0.00023056,2]
[406270599,1771675847456,-209.40437684,0.00023056,2]
[406270601,1771675847465,-250.0,0.00023056,2]